bitfinex/quotes_BTCUSD_20240817
["timestamp","ask_amount","ask_price","bid_price","bid_amount"]
[1723915226505,0.142726,59622.0,59621.0,0.15995676]
[1723915226709,0.142726,59622.0,59621.0,0.15995622]
[1723915226911,0.142726,59622.0,59621.0,0.14795622]
[1723915227309,0.142726,59622.0,59621.0,0.1327026]
[1723915229808,0.142726,59622.0,59621.0,0.0069086]
[1723915229809,0.362018,59622.0,59621.0,0.0069086]
[1723915229953,0.865186,59622.0,59621.0,0.0009086]
[1723915230355,0.865186,59622.0,59621.0,0.0039086]
[1723915230753,0.865186,59622.0,59621.0,0.0009086]
[1723915231359,0.613602,59622.0,59621.0,0.0009086]
[1723915231558,0.865186,59622.0,59621.0,0.0009086]
[1723915232588,0.87495427,59622.0,59621.0,0.0009086]
[1723915232788,0.613602,59622.0,59621.0,0.0009086]
[1723915232996,0.142726,59622.0,59621.0,0.0009086]
[1723915233195,0.082126,59622.0,59621.0,0.3782916]
[1723915233830,0.000826,59622.0,59621.0,0.6298806]
[1723915234131,0.000826,59622.0,59621.0,0.6348806]
[1723915234819,0.141026,59622.0,59621.0,0.3832916]
[1723915235125,0.141026,59622.0,59621.0,0.1317026]
[1723915242403,0.611902,59622.0,59621.0,0.0059086]
[1723915243229,0.611902,59622.0,59621.0,0.0009086]
[1723915243426,0.611902,59622.0,59621.0,0.0039086]
[1723915246475,0.611902,59622.0,59621.0,0.0009086]
[1723915247564,0.078326,59622.0,59621.0,0.0009086]
[1723915247767,0.000826,59622.0,59621.0,0.3782916]
[1723915247966,0.000826,59622.0,59621.0,0.1267026]
[1723915248812,0.000826,59622.0,59621.0,0.1297026]
[1723915248988,0.000826,59622.0,59621.0,0.3812916]
[1723915249190,0.000826,59622.0,59621.0,0.1297026]
[1723915249395,0.000826,59622.0,59621.0,0.3782916]
[1723915249596,0.000826,59622.0,59621.0,0.6298806]
[1723915249796,0.000826,59622.0,59621.0,0.6348806]
[1723915251180,0.000826,59622.0,59621.0,0.1317026]
[1723915251385,0.126618,59622.0,59621.0,0.0059086]
[1723915251588,0.270618,59622.0,59621.0,0.0059086]
[1723915251901,0.144826,59622.0,59621.0,0.0059086]
[1723915252295,0.270618,59622.0,59621.0,0.0009086]
[1723915252472,0.144826,59622.0,59621.0,0.0009086]
[1723915252676,0.144826,59622.0,59621.0,0.0019086]
[1723915252879,0.081026,59622.0,59621.0,0.0019086]
[1723915253076,0.081026,59622.0,59621.0,0.0009086]
[1723915253878,0.206818,59622.0,59621.0,0.0009086]
[1723915255098,0.206818,59622.0,59621.0,0.0019086]
[1723915255680,0.552202,59622.0,59621.0,0.0019086]
[1723915256667,0.552202,59622.0,59621.0,0.0009086]
[1723915257671,0.300618,59622.0,59621.0,0.0009086]
[1723915257876,0.803786,59622.0,59621.0,0.0009086]
[1723915263519,0.552202,59622.0,59621.0,0.0009086]
[1723915263739,0.236818,59622.0,59621.0,0.0009086]
[1723915264227,0.206818,59622.0,59621.0,0.0009086]
[1723915264745,0.000826,59622.0,59621.0,0.1267026]
[1723915265024,0.000826,59622.0,59621.0,0.3782916]
[1723915265528,0.000826,59622.0,59621.0,0.39955004]
[1723915266033,0.000826,59622.0,59621.0,0.65413904]
[1723915266541,0.000826,59622.0,59621.0,0.65113894]
[1723915267762,0.000826,59622.0,59621.0,0.65613894]
[1723915268251,0.076026,59622.0,59621.0,0.02716694]
[1723915268493,0.076026,59622.0,59621.0,0.0059086]
[1723915268494,0.201818,59622.0,59621.0,0.0059086]
[1723915268761,0.453402,59622.0,59621.0,0.0059086]
[1723915269028,0.704986,59622.0,59621.0,0.0059086]
[1723915269569,0.704986,59622.0,59621.0,0.0009086]
[1723915270617,0.765886,59622.0,59621.0,0.0009086]
[1723915270881,0.765886,59622.0,59621.0,0.0029086]
[1723915271142,0.765886,59622.0,59621.0,0.0009086]
[1723915274542,0.514302,59622.0,59621.0,0.0009086]
[1723915284252,0.262718,59622.0,59621.0,0.0009086]
[1723915285874,0.514302,59622.0,59621.0,0.0009086]
[1723915286715,0.765886,59622.0,59621.0,0.0009086]
[1723915287103,0.514302,59622.0,59621.0,0.0009086]
[1723915291542,1.01747,59622.0,59621.0,0.0009086]
[1723915291845,0.79214686,59622.0,59621.0,0.0009086]
[1723915292143,1.16246594,59622.0,59621.0,0.0009086]
[1723915292400,1.16673086,59622.0,59621.0,0.0009086]
[1723915293134,1.16773086,59622.0,59621.0,0.0009086]
[1723915293334,1.16973086,59622.0,59621.0,0.0009086]
[1723915293956,1.40063086,59622.0,59621.0,0.0009086]
[1723915294561,1.40163086,59622.0,59621.0,0.0009086]
[1723915294871,1.40063086,59622.0,59621.0,0.0009086]
[1723915295369,1.40163086,59622.0,59621.0,0.0019086]
[1723915298457,1.52713797,59622.0,59621.0,0.0019086]
[1723915301085,1.52711765,59622.0,59621.0,0.0019086]
[1723915302436,1.40163086,59622.0,59621.0,0.0019086]
[1723915304863,1.5761854,59622.0,59621.0,0.0019086]
[1723915305347,1.8277694,59622.0,59621.0,0.0019086]
[1723915305523,1.8297694,59622.0,59621.0,0.0019086]
[1723915305883,1.98035355,59622.0,59621.0,0.0019086]
[1723915307441,1.8297694,59622.0,59621.0,0.0019086]
[1723915307985,2.0813534,59622.0,59621.0,0.0019086]
[1723915309870,2.0773534,59622.0,59621.0,0.0019086]
[1723915310471,2.0793534,59622.0,59621.0,0.0019086]
[1723915310673,2.0813534,59622.0,59621.0,0.0019086]
[1723915310873,2.23193755,59622.0,59621.0,0.0019086]
[1723915311255,2.06038301,59622.0,59621.0,0.0019086]
[1723915311455,1.90979886,59622.0,59621.0,0.0019086]
[1723915311656,2.06038301,59622.0,59621.0,0.0019086]
[1723915311860,1.90979886,59622.0,59621.0,0.0019086]
[1723915312105,2.06038301,59622.0,59621.0,0.0019086]
[1723915312534,2.18572528,59622.0,59621.0,0.0019086]
[1723915312737,2.03514113,59622.0,59621.0,6e-07]
[1723915315329,2.21204113,59622.0,59621.0,6e-07]
[1723915315550,2.21386698,59622.0,59621.0,6e-07]
[1723915316019,2.07356698,59622.0,59621.0,6e-07]
[1723915316925,1.89666698,59622.0,59621.0,6e-07]
[1723915317125,1.89666698,59622.0,59621.0,0.0009081]
[1723915317425,1.77132471,59622.0,59621.0,0.0009081]
[1723915317651,1.77132471,59622.0,59621.0,1e-07]
[1723915317851,1.94822471,59622.0,59621.0,1e-07]
[1723915319002,2.19980871,59622.0,59621.0,1e-07]
[1723915319364,1.94822471,59622.0,59621.0,1e-07]
[1723915319591,1.67772471,59622.0,59621.0,1e-07]
[1723915320732,1.77132471,59622.0,59621.0,1e-07]
[1723915322805,1.96506108,59622.0,59621.0,1e-07]
[1723915323184,1.97178608,59622.0,59621.0,1e-07]
[1723915327141,2.12195974,59622.0,59621.0,1e-07]
[1723915327339,2.37354374,59622.0,59621.0,1e-07]
[1723915328036,2.29885974,59622.0,59621.0,1e-07]
[1723915328234,2.72199828,59622.0,59621.0,1e-07]
[1723915328452,2.57182462,59622.0,59621.0,1e-07]
[1723915330836,2.37808825,59622.0,59621.0,1e-07]
[1723915334285,2.12650425,59622.0,59621.0,1e-07]
[1723915334843,2.20653371,59622.0,59621.0,1e-07]
[1723915335301,1.95494971,59622.0,59621.0,1e-07]
[1723915335728,2.13220175,59622.0,59621.0,1e-07]
[1723915335852,2.38378575,59622.0,59621.0,1e-07]
[1723915336349,2.55288985,59622.0,59621.0,1e-07]
[1723915337701,2.72444439,59622.0,59621.0,1e-07]
[1723915338111,2.47286039,59622.0,59621.0,1e-07]
[1723915338311,2.30130585,59622.0,59621.0,1e-07]
[1723915338513,2.13220175,59622.0,59621.0,1e-07]
[1723915339448,1.86170175,59622.0,59621.0,1e-07]
[1723915339767,1.95530175,59622.0,59621.0,1e-07]
[1723915340642,2.04325295,59622.0,59621.0,1e-07]
[1723915344365,2.04366703,59622.0,59621.0,1e-07]
[1723915344915,2.04658819,59622.0,59621.0,1e-07]
[1723915346850,1.95863699,59622.0,59621.0,1e-07]
[1723915347079,2.12801883,59622.0,59621.0,1e-07]
[1723915347261,1.95863699,59622.0,59621.0,1e-07]
[1723915348043,1.95571583,59622.0,59621.0,1e-07]
[1723915352379,1.95054788,59622.0,59621.0,1e-07]
[1723915352831,1.97687182,59622.0,59621.0,1e-07]
[1723915353985,2.14842636,59622.0,59621.0,1e-07]
[1723915359218,2.40001036,59622.0,59621.0,1e-07]
[1723915359419,2.14842636,59622.0,59621.0,1e-07]
[1723915360483,1.363263,59615.0,59614.0,0.0009086]
[1723915360704,1.60612386,59615.0,59614.0,0.0009086]
[1723915360909,1.60612386,59615.0,59613.0,0.0009086]
[1723915360910,0.963363,59614.0,59613.0,2e-07]
[1723915361072,1.61785986,59614.0,59613.0,2e-07]
[1723915361268,1.86947786,59614.0,59613.0,2e-07]
[1723915361473,2.0410324,59614.0,59613.0,2e-07]
[1723915361910,2.20882281,59614.0,59613.0,2e-07]
[1723915362310,1.95756827,59614.0,59613.0,2e-07]
[1723915362575,1.95956827,59614.0,59613.0,0.0010002]
[1723915363414,1.70395027,59614.0,59613.0,0.0010002]
[1723915363623,1.71380182,59614.0,59613.0,0.1441002]
[1723915363767,1.71780182,59614.0,59613.0,0.1441002]
[1723915365172,1.81140182,59614.0,59613.0,0.1441002]
[1723915365795,1.98295636,59614.0,59613.0,0.1441002]
[1723915365999,1.81140182,59614.0,59613.0,0.1441002]
[1723915366315,1.80740182,59614.0,59613.0,0.1441002]
[1723915368648,1.81032324,59614.0,59613.0,0.1441002]
[1723915370496,1.64253283,59614.0,59613.0,0.1441002]
[1723915371128,1.64053283,59614.0,59613.0,0.1431002]
[1723915371331,1.63761141,59614.0,59613.0,0.1431002]
[1723915371534,1.65161141,59614.0,59613.0,0.1441002]
[1723915374333,1.65361141,59614.0,59613.0,0.1441002]
[1723915374542,1.65561141,59614.0,59613.0,0.1441002]
[1723915374754,1.65161141,59614.0,59613.0,0.1441002]
[1723915376117,1.30539341,59614.0,59613.0,0.1441002]
[1723915376345,1.45614667,59614.0,59613.0,0.1441002]
[1723915377044,1.45697167,59614.0,59613.0,0.1441002]
[1723915377620,1.44297167,59614.0,59613.0,0.1431002]
[1723915377815,1.44297167,59614.0,59613.0,0.1441002]
[1723915378029,1.18135367,59614.0,59613.0,0.1441002]
[1723915378235,0.46777258,59614.0,59613.0,0.1441002]
[1723915378434,0.391252,59614.0,59613.0,0.1431002]
[1723915378594,0.126634,59614.0,59613.0,0.1431002]
[1723915378794,0.139634,59614.0,59613.0,0.1441002]
[1723915379428,0.126634,59614.0,59613.0,0.1431002]
[1723915380872,0.130634,59614.0,59613.0,0.1431002]
[1723915381231,0.004825,59614.0,59613.0,0.1431002]
[1723915381434,0.000825,59614.0,59613.0,0.2689112]
[1723915381635,0.000825,59614.0,59613.0,0.1431002]
[1723915381834,0.000825,59614.0,59613.0,0.2699112]
[1723915382033,0.000825,59614.0,59613.0,0.5215332]
[1723915382632,0.000825,59614.0,59613.0,0.5205332]
[1723915383083,0.000825,59614.0,59613.0,0.1431002]
[1723915383256,0.000825,59614.0,59613.0,0.2689112]
[1723915384005,0.000825,59614.0,59613.0,0.1461002]
[1723915384215,0.126634,59614.0,59613.0,0.1461002]
[1723915385883,0.378252,59614.0,59613.0,0.1461002]
[1723915386239,0.881488,59614.0,59613.0,0.1461002]
[1723915386792,0.8917238,59614.0,59613.0,0.1461002]
[1723915387646,0.881488,59614.0,59613.0,0.1431002]
[1723915387994,0.886488,59614.0,59613.0,0.1431002]
[1723915388405,0.881488,59614.0,59613.0,0.1431002]
[1723915388810,0.886488,59614.0,59613.0,0.1431002]
[1723915396160,1.220506,59614.0,59613.0,2e-07]
[1723915396825,1.27059191,59614.0,59613.0,2e-07]
[1723915397199,1.220506,59614.0,59613.0,2e-07]
[1723915397602,1.29686275,59614.0,59613.0,2e-07]
[1723915398367,1.21446275,59614.0,59613.0,2e-07]
[1723915399024,1.1643737,59614.0,59613.0,2e-07]
[1723915407497,1.21448406,59614.0,59613.0,2e-07]
[1723915408142,0.9127557,59614.0,59613.0,0.0606002]
[1723915408254,0.9127557,59614.0,59613.0,0.1429002]
[1723915408458,0.886488,59614.0,59613.0,0.0606002]
[1723915409353,0.886488,59614.0,59613.0,2e-07]
[1723915409354,0.91275393,59614.0,59613.0,2e-07]
[1723915410226,1.08430847,59614.0,59613.0,2e-07]
[1723915410429,1.26200847,59614.0,59613.0,2e-07]
[1723915410583,1.31211883,59614.0,59613.0,2e-07]
[1723915411199,1.26200847,59614.0,59613.0,2e-07]
[1723915411466,1.31215477,59614.0,59613.0,2e-07]
[1723915412016,1.26200847,59614.0,59613.0,2e-07]
[1723915412417,1.31215477,59614.0,59613.0,2e-07]
[1723915413360,1.14060023,59614.0,59613.0,2e-07]
[1723915414148,1.06290023,59614.0,59613.0,2e-07]
[1723915414346,1.01275393,59614.0,59613.0,2e-07]
[1723915414610,1.06290023,59614.0,59613.0,2e-07]
[1723915415718,1.01275393,59614.0,59613.0,2e-07]
[1723915416015,1.06292452,59614.0,59613.0,2e-07]
[1723915417565,1.23447906,59614.0,59613.0,2e-07]
[1723915418189,1.06292452,59614.0,59613.0,2e-07]
[1723915418676,1.06293461,59614.0,59613.0,2e-07]
[1723915420113,1.15653461,59614.0,59613.0,2e-07]
[1723915420560,1.15654848,59614.0,59613.0,2e-07]
[1723915421771,1.15655348,59614.0,59613.0,2e-07]
[1723915422339,1.10635393,59614.0,59613.0,2e-07]
[1723915423012,1.15655541,59614.0,59613.0,2e-07]
[1723915423534,1.10635393,59614.0,59613.0,2e-07]
[1723915427303,1.18166203,59614.0,59613.0,2e-07]
[1723915429604,1.01275393,59614.0,59613.0,0.0633002]
[1723915429808,1.08810905,59614.0,59613.0,0.1461002]
[1723915430206,1.01275393,59614.0,59613.0,0.1461002]
[1723915430725,1.10635393,59614.0,59613.0,0.1461002]
[1723915431254,1.20682742,59614.0,59613.0,0.1461002]
[1723915431468,0.86160942,59614.0,59613.0,0.1461002]
[1723915432217,0.76113593,59614.0,59613.0,0.1461002]
[1723915434064,0.85473593,59614.0,59613.0,0.1461002]
[1723915437319,0.86173593,59614.0,59613.0,0.1471002]
[1723915438031,1.11335393,59614.0,59613.0,0.1471002]
[1723915439236,1.21389728,59614.0,59613.0,0.1471002]
[1723915439570,0.96227928,59614.0,59613.0,0.1471002]
[1723915440100,1.21389728,59614.0,59613.0,0.1471002]
[1723915440970,0.96227928,59614.0,59613.0,0.1471002]
[1723915441408,1.21389728,59614.0,59613.0,0.1471002]
[1723915442023,0.61699512,59614.0,59613.0,0.1471002]
[1723915442227,0.31514063,59614.0,59613.0,0.1471002]
[1723915442432,0.16489993,59614.0,59613.0,0.1471002]
[1723915442635,0.012825,59614.0,59613.0,0.5245332]
[1723915442834,0.012825,59614.0,59613.0,0.54579452]
[1723915443292,0.012825,59614.0,59613.0,0.8910162]
[1723915443469,0.012825,59614.0,59613.0,0.7974162]
[1723915443670,0.012825,59614.0,59613.0,0.7964157]
[1723915443671,0.005825,59614.0,59613.0,0.7964157]
[1723915444093,0.005825,59614.0,59613.0,0.7974157]
[1723915444300,0.000825,59614.0,59613.0,0.7964157]
[1723915444502,0.000825,59614.0,59613.0,0.7984157]
[1723915445110,0.000825,59614.0,59613.0,0.7964157]
[1723915445447,0.002825,59614.0,59613.0,0.8034157]
[1723915447232,0.002825,59614.0,59613.0,0.7821552]
[1723915447403,0.002825,59614.0,59613.0,0.1531002]
[1723915448281,0.002825,59614.0,59613.0,0.5305332]
[1723915448707,0.002825,59614.0,59613.0,0.2789112]
[1723915450544,0.002825,59614.0,59613.0,0.5305332]
[1723915453634,0.002825,59614.0,59613.0,0.7821552]
[1723915454007,0.002825,59614.0,59613.0,0.8757552]
[1723915455226,0.002825,59614.0,59613.0,1.1273772]
[1723915455425,0.002825,59614.0,59613.0,1.1283772]
[1723915455604,0.002825,59614.0,59613.0,1.1273772]
[1723915455804,0.002825,59614.0,59613.0,1.0337772]
[1723915459463,0.002825,59614.0,59613.0,1.1283772]
[1723915460107,0.002825,59614.0,59613.0,1.1273772]
[1723915460948,0.002825,59614.0,59613.0,1.1283772]
[1723915461159,0.002825,59614.0,59613.0,1.1303772]
[1723915461401,0.002825,59614.0,59613.0,1.1273772]
[1723915461600,0.002825,59614.0,59613.0,1.1283772]
[1723915462031,0.002825,59614.0,59613.0,1.15163739]
[1723915463064,0.002825,59614.0,59613.0,1.14863739]
[1723915465323,0.002825,59614.0,59613.0,1.14963739]
[1723915465646,0.002825,59614.0,59613.0,1.15163739]
[1723915465859,0.002825,59614.0,59613.0,1.14863739]
[1723915466435,0.002825,59614.0,59613.0,1.14963739]
[1723915467033,0.002825,59614.0,59613.0,1.1283772]
[1723915467251,0.002825,59614.0,59613.0,1.14963732]
[1723915467644,0.002825,59614.0,59613.0,1.14863732]
[1723915473258,0.002825,59614.0,59613.0,1.15163732]
[1723915473776,0.002825,59614.0,59613.0,1.14863732]
[1723915475439,0.002825,59614.0,59613.0,1.05503732]
[1723915475640,0.002825,59614.0,59613.0,1.14863732]
[1723915477175,0.002825,59614.0,59613.0,1.14963732]
[1723915477642,0.002825,59614.0,59613.0,1.14863732]
[1723915484968,0.002825,59614.0,59613.0,1.1303772]
[1723915485174,0.002825,59614.0,59613.0,1.18716164]
[1723915486006,0.000825,59614.0,59613.0,1.18016164]
[1723915486401,0.002825,59614.0,59613.0,1.19216164]
[1723915487669,0.002825,59614.0,59613.0,1.61733818]
[1723915487892,0.002825,59614.0,59613.0,1.6482528]
[1723915488091,0.002825,59614.0,59613.0,1.72378293]
[1723915488295,0.002825,59614.0,59613.0,2.02044375]
[1723915490084,0.002825,59614.0,59613.0,2.04344375]
[1723915490287,0.002825,59614.0,59613.0,2.21150736]
[1723915490490,0.002825,59614.0,59613.0,2.40430772]
[1723915490665,0.002825,59614.0,59613.0,2.45233781]
[1723915491065,0.002825,59614.0,59613.0,2.45033781]
[1723915491066,0.001825,59614.0,59613.0,2.45033781]
[1723915491328,0.001825,59614.0,59613.0,2.40230772]
[1723915491533,0.001825,59614.0,59613.0,2.39930772]
[1723915491669,0.001825,59614.0,59613.0,2.39230772]
[1723915491875,0.001825,59614.0,59613.0,2.40630772]
[1723915492094,0.002825,59614.0,59613.0,2.41330772]
[1723915492471,0.002825,59614.0,59613.0,2.39930772]
[1723915492875,0.002825,59614.0,59613.0,2.41330772]
[1723915493282,0.000826,59622.0,59621.0,1.13615]
[1723915493495,0.000826,59622.0,59621.0,2.1267464]
[1723915493702,0.000826,59622.0,59621.0,2.03536394]
[1723915493901,0.000826,59622.0,59621.0,2.09416673]
[1723915494147,0.000826,59622.0,59621.0,2.03536394]
[1723915495143,0.000826,59622.0,59621.0,2.1750348]
[1723915495283,0.000826,59622.0,59621.0,2.1890348]
[1723915495488,0.000826,59622.0,59621.0,2.31495294]
[1723915496347,0.000826,59622.0,59621.0,2.30571268]
[1723915496560,0.000826,59622.0,59621.0,2.40618159]
[1723915497304,0.000826,59622.0,59621.0,2.40617279]
[1723915497525,0.000826,59622.0,59621.0,2.30570388]
[1723915498523,0.000826,59622.0,59621.0,2.39104365]
[1723915498925,0.000826,59622.0,59621.0,2.00888318]
[1723915499581,0.000826,59622.0,59621.0,1.93356837]
[1723915501096,0.000826,59622.0,59621.0,1.83996875]
[1723915501289,0.000826,59622.0,59621.0,1.93356875]
[1723915501490,0.000826,59622.0,59621.0,1.98376865]
[1723915502468,0.000826,59622.0,59621.0,1.95285926]
[1723915502898,0.000826,59622.0,59621.0,2.08376858]
[1723915504074,0.000826,59622.0,59621.0,2.08374584]
[1723915504521,0.000826,59622.0,59621.0,2.03356868]
[1723915505308,0.000826,59622.0,59621.0,2.05283652]
[1723915505514,0.000826,59633.0,59621.0,2.05283652]
[1723915505515,0.000826,59633.0,59632.0,0.942897]
[1723915505716,0.000826,59633.0,59632.0,1.23130477]
[1723915505918,0.000826,59633.0,59632.0,1.23330477]
[1723915506119,0.000826,59633.0,59632.0,1.48484677]
[1723915507627,0.000826,59633.0,59632.0,1.48484466]
[1723915507832,0.000826,59633.0,59632.0,1.47059354]
[1723915508030,0.000826,59633.0,59632.0,1.49184466]
[1723915508235,0.000826,59633.0,59632.0,1.48484466]
[1723915508438,0.000826,59633.0,59632.0,1.50684466]
[1723915508651,0.000826,59633.0,59632.0,1.17919012]
[1723915508652,0.083926,59633.0,59632.0,1.17919012]
[1723915509026,0.083926,59633.0,59632.0,1.27279031]
[1723915509457,0.083926,59633.0,59632.0,1.02124837]
[1723915516568,0.083926,59633.0,59632.0,1.02124895]
[1723915518777,0.083926,59633.0,59632.0,1.02124932]
[1723915519221,0.083926,59633.0,59632.0,1.05675997]
[1723915519635,0.083926,59633.0,59632.0,1.05676005]
[1723915520618,0.083926,59633.0,59632.0,1.03550815]
[1723915520823,0.083926,59633.0,59632.0,1.05676055]
[1723915524154,0.083926,59633.0,59632.0,1.08766875]
[1723915524584,0.083926,59633.0,59632.0,1.08866875]
[1723915524785,0.083926,59633.0,59632.0,1.0319049]
[1723915524988,0.083926,59633.0,59632.0,1.08866667]
[1723915525233,0.083926,59633.0,59632.0,1.09066667]
[1723915528747,0.083926,59633.0,59632.0,1.08766667]
[1723915529131,0.083926,59633.0,59632.0,0.99406667]
[1723915529360,0.083926,59633.0,59632.0,1.08766667]
[1723915529772,0.083926,59633.0,59632.0,1.08766697]
[1723915531214,0.083926,59633.0,59632.0,1.08766777]
[1723915533039,0.083926,59633.0,59632.0,1.05215724]
[1723915533373,0.083926,59633.0,59632.0,1.08766777]
[1723915534590,0.083926,59633.0,59632.0,1.05675957]
[1723915534789,0.083926,59633.0,59632.0,1.08766777]
[1723915535581,0.083926,59633.0,59632.0,1.13783016]
[1723915536422,0.083926,59633.0,59632.0,1.16291136]
[1723915537364,0.083926,59633.0,59632.0,1.5349806]
[1723915538447,0.083926,59633.0,59632.0,1.45973701]
[1723915539066,0.083926,59633.0,59632.0,1.08766777]
[1723915539274,0.083926,59633.0,59632.0,1.459737]
[1723915539606,0.083926,59633.0,59632.0,1.46680617]
[1723915539607,0.083926,59633.0,59632.0,0.71218017]
[1723915539608,0.144126,59633.0,59632.0,0.71218017]
[1723915539808,0.144126,59633.0,59632.0,0.42456504]
[1723915540007,0.144126,59633.0,59632.0,0.654855]
[1723915540207,0.144126,59633.0,59632.0,0.151771]
[1723915540591,0.144126,59633.0,59632.0,0.138771]
[1723915540998,0.144126,59633.0,59632.0,0.139771]
[1723915541126,0.144126,59633.0,59632.0,0.014]
[1723915541335,0.144126,59633.0,59632.0,0.013]
[1723915541536,0.144126,59633.0,59632.0,0.125771]
[1723915541739,0.144126,59633.0,59627.0,0.251563]
[1723915541740,0.0792,59632.0,59628.0,0.251556]
[1723915542110,0.0792,59632.0,59620.0,0.07552054]
[1723915542111,0.0792,59627.0,59626.0,0.125784]
[1723915542270,0.1394,59627.0,59626.0,0.125784]
[1723915543527,0.1394,59627.0,59626.0,0.128784]
[1723915543707,0.1394,59627.0,59626.0,0.129784]
[1723915544808,0.1394,59627.0,59626.0,0.381352]
[1723915545798,0.1394,59627.0,59626.0,0.378352]
[1723915546166,0.1394,59627.0,59626.0,0.383352]
[1723915546364,0.1394,59627.0,59626.0,0.388352]
[1723915550506,0.390963,59627.0,59626.0,0.011]
[1723915550661,0.516744,59627.0,59626.0,0.011]
[1723915550866,0.265181,59627.0,59626.0,0.011]
[1723915551111,0.516744,59627.0,59626.0,0.011]
[1723915551921,0.768307,59627.0,59626.0,0.011]
[1723915552122,0.768307,59627.0,59626.0,0.005]
[1723915552651,0.125786,59625.0,59622.0,0.1266995]
[1723915552860,0.125786,59625.0,59622.0,0.3460895]
[1723915552861,0.0792,59625.0,59622.0,0.3460895]
[1723915553030,0.0792,59625.0,59624.0,0.377364]
[1723915555564,0.0792,59625.0,59624.0,0.381364]
[1723915556344,0.0792,59625.0,59624.0,0.383364]
[1723915557285,0.076325,59627.0,59625.0,0.125784]
[1723915557547,0.076325,59627.0,59626.0,0.125784]
[1723915558634,0.076325,59627.0,59626.0,0.377352]
[1723915559876,0.076325,59627.0,59626.0,0.378352]
[1723915561047,0.076325,59627.0,59626.0,0.126784]
[1723915564897,0.076325,59627.0,59626.0,0.378352]
[1723915565822,0.076325,59627.0,59626.0,0.377352]
[1723915566352,0.076325,59627.0,59626.0,0.378352]
[1723915566526,0.076325,59627.0,59626.0,0.382352]
[1723915566828,0.076325,59627.0,59626.0,0.381352]
[1723915568524,0.076325,59627.0,59626.0,0.386352]
[1723915569124,0.076325,59627.0,59626.0,0.134784]
[1723915569328,0.076325,59627.0,59626.0,0.15604071]
[1723915569705,0.076325,59627.0,59626.0,0.40760871]
[1723915573753,0.000825,59627.0,59626.0,0.78829272]
[1723915573951,0.000825,59627.0,59626.0,0.75277671]
[1723915574093,0.000825,59627.0,59626.0,0.78829282]
[1723915574920,0.000825,59627.0,59626.0,0.78329282]
[1723915575797,0.000825,59627.0,59626.0,0.75577671]
[1723915576200,0.000825,59627.0,59626.0,0.75577515]
[1723915577260,0.000825,59627.0,59626.0,0.75177515]
[1723915577611,0.000825,59627.0,59626.0,0.75877515]
[1723915579105,0.000825,59627.0,59626.0,0.75877522]
[1723915579649,0.000825,59627.0,59626.0,0.66517522]
[1723915580558,0.000825,59627.0,59626.0,0.66517554]
[1723915580765,0.000825,59627.0,59626.0,0.64392]
[1723915580939,0.000825,59627.0,59626.0,0.66517551]
[1723915583458,0.000825,59627.0,59626.0,0.64392]
[1723915583613,0.080225,59627.0,59626.0,0.66517548]
[1723915584603,0.080225,59627.0,59626.0,0.66517579]
[1723915585669,0.000825,59627.0,59626.0,0.66517579]
[1723915588711,0.000825,59627.0,59626.0,0.64392]
[1723915588931,0.000825,59627.0,59626.0,0.66517501]
[1723915591183,0.000825,59627.0,59626.0,0.91674301]
[1723915591391,0.000825,59627.0,59626.0,1.0933581]
[1723915591595,0.000825,59627.0,59626.0,1.26491264]
[1723915591818,0.000825,59627.0,59626.0,1.3404197]
[1723915592147,0.000825,59627.0,59626.0,1.71253139]
[1723915592356,0.000825,59627.0,59626.0,1.3264197]
[1723915592569,0.000825,59627.0,59626.0,1.2696496]
[1723915592828,0.000825,59627.0,59626.0,1.32641792]
[1723915593048,0.000825,59627.0,59626.0,1.2716496]
[1723915593238,0.000825,59627.0,59626.0,1.32841792]
[1723915593439,0.000825,59627.0,59626.0,1.25091086]
[1723915593643,0.000825,59627.0,59626.0,1.26391086]
[1723915594059,0.000825,59627.0,59626.0,1.27691086]
[1723915595494,0.000825,59627.0,59626.0,1.51947886]
[1723915595701,0.000825,59627.0,59626.0,1.50647886]
[1723915596388,0.000825,59627.0,59626.0,1.55679255]
[1723915596792,0.000825,59627.0,59626.0,1.57079255]
[1723915596993,0.000825,59627.0,59626.0,1.52802423]
[1723915597195,0.000825,59627.0,59626.0,1.58479255]
[1723915597394,0.000825,59627.0,59626.0,1.52047886]
[1723915597646,0.000825,59627.0,59626.0,1.53447886]
[1723915601756,0.000825,59627.0,59626.0,1.53047886]
[1723915603320,0.000825,59627.0,59626.0,1.53247886]
[1723915604289,0.000825,59627.0,59626.0,1.63886341]
[1723915604520,0.000825,59627.0,59626.0,2.01096836]
[1723915605315,0.000825,59627.0,59626.0,1.97545386]
[1723915605514,0.000825,59627.0,59626.0,2.01096746]
[1723915606113,0.000825,59627.0,59626.0,1.98005738]
[1723915606453,0.000825,59627.0,59626.0,2.01096722]
[1723915606650,0.000825,59627.0,59626.0,2.00896722]
[1723915606983,0.000825,59627.0,59626.0,2.01096722]
[1723915607886,0.000825,59627.0,59626.0,2.01096327]
[1723915609292,0.000825,59627.0,59626.0,2.00796327]
[1723915609492,0.000825,59627.0,59626.0,0.83819726]
[1723915609493,0.079025,59627.0,59626.0,0.83819726]
[1723915609696,0.079025,59627.0,59626.0,0.80728955]
[1723915610170,0.079025,59627.0,59626.0,0.79328955]
[1723915610594,0.079025,59627.0,59626.0,0.80528955]
[1723915610727,0.079025,59627.0,59626.0,0.79128955]
[1723915611337,0.079025,59627.0,59626.0,0.77928955]
[1723915611908,0.079025,59627.0,59626.0,0.78828955]
[1723915612467,0.079025,59627.0,59626.0,0.77928955]
[1723915612842,0.079025,59627.0,59626.0,1.03085755]
[1723915613071,0.000825,59627.0,59626.0,1.08118209]
[1723915613621,0.000825,59627.0,59626.0,1.08118095]
[1723915613823,0.000825,59627.0,59626.0,1.14708095]
[1723915614055,0.000825,59627.0,59626.0,1.15608095]
[1723915614259,0.000825,59627.0,59626.0,1.09018095]
[1723915614476,0.000825,59627.0,59626.0,1.03985641]
[1723915614678,0.000825,59627.0,59626.0,1.05285641]
[1723915615494,0.000825,59627.0,59626.0,1.15925343]
[1723915615711,0.000825,59627.0,59626.0,1.14625343]
[1723915616117,0.000825,59627.0,59626.0,1.15625343]
[1723915616411,0.000825,59627.0,59626.0,1.52836408]
[1723915616612,0.000825,59627.0,59626.0,1.52936408]